bitfinex-derivatives/quotes_ETHF0:USTF0_20250604
["timestamp","ask_amount","ask_price","bid_price","bid_amount"]
[1749071661681,0.76456,2614.7,2614.6,0.00574064]
[1749071661878,0.76456,2614.7,2614.6,4.62174064]
[1749071662781,0.76456,2614.7,2614.6,4.62074064]
[1749071663585,2.08806,2614.7,2614.6,4.62074064]
[1749071663786,2.08806,2614.7,2614.6,0.00574064]
[1749071664090,2.96794021,2614.7,2614.6,4.62074064]
[1749071664888,0.76471,2614.2,2614.1,27.758]
[1749071665981,0.76471,2614.2,2614.1,4.615]
[1749071666176,1.64386273,2614.2,2614.1,4.615]
[1749071666389,0.76471,2614.2,2614.1,4.615]
[1749071666890,2.25805518,2614.2,2614.1,4.615]
[1749071667092,1.37831,2614.2,2614.1,4.615]
[1749071667277,2.25827874,2614.2,2614.1,4.615]
[1749071668585,1.37831,2614.2,2614.1,4.615]
[1749071668782,2.25961044,2614.2,2614.1,4.615]
[1749071669393,2.25977603,2614.2,2614.1,4.615]
[1749071671892,2.26298847,2614.2,2614.1,4.615]
[1749071672997,0.76476,2614.0,2613.9,0.00574064]
[1749071673296,0.76476,2614.0,2613.9,4.71574064]
[1749071673499,1.64943847,2614.0,2613.9,4.71574064]
[1749071676590,1.64943847,2614.0,2613.9,0.00574064]
[1749071676799,0.76494,2613.4,2613.3,23.133]
[1749071676997,0.76494,2613.4,2613.3,27.843]
[1749071677290,1.64961847,2613.4,2613.3,27.843]
[1749071679101,1.64961847,2613.4,2613.3,23.133]
[1749071679395,1.64961847,2613.4,2613.3,27.843]
[1749071679795,2.86341847,2613.4,2613.3,27.843]
[1749071680095,0.06731476,2614.2,2613.7,0.76483]
[1749071680299,0.89180731,2614.1,2613.8,5.9874]
[1749071680601,0.89180731,2614.0,2613.9,8.68359]
[1749071680797,0.89180731,2614.0,2613.9,9.90049]
[1749071682595,0.83203476,2614.2,2614.1,0.76473]
[1749071682792,1.72379224,2614.2,2614.1,0.76473]
[1749071682996,0.95907224,2614.2,2613.9,9.1357]
[1749071683299,1.65649748,2614.1,2614.0,0.76476]
[1749071683500,1.65649748,2614.1,2613.9,9.1357]
[1749071683703,1.65651748,2614.0,2613.9,9.90047]
[1749071683901,1.65651748,2614.0,2613.9,9.1357]
[1749071684096,1.65651748,2614.0,2613.9,7.9188]
[1749071684803,1.65651748,2614.0,2613.9,4.711]
[1749071685300,1.65651748,2614.0,2613.9,5.47579]
[1749071685703,0.89175748,2614.0,2613.9,5.47579]
[1749071685903,0.76476,2614.0,2613.9,5.47579]
[1749071686206,1.65651748,2614.0,2613.9,6.76719]
[1749071686599,1.65651748,2614.0,2613.9,6.0024]
[1749071687002,1.66886977,2614.0,2613.9,6.0024]
[1749071687301,0.90410977,2614.0,2613.9,6.76719]
[1749071687501,1.66886977,2614.0,2613.9,6.0024]
[1749071687702,0.90410977,2614.0,2613.9,6.76719]
[1749071689804,1.66886977,2614.0,2613.9,6.76719]
[1749071690098,0.90410977,2614.0,2613.9,6.76719]
[1749071690307,1.66886977,2614.0,2613.9,6.76719]
[1749071690504,1.73618453,2614.0,2613.9,6.76719]
[1749071691405,0.83207476,2614.0,2613.9,6.76719]
[1749071691597,1.73823933,2614.0,2613.9,6.76719]
[1749071693110,1.73823933,2614.0,2613.9,6.0024]
[1749071693606,1.73823933,2614.0,2613.9,6.76719]
[1749071698311,1.73823933,2614.0,2613.8,4.4842]
[1749071698312,0.76479,2613.9,2613.8,4.4842]
[1749071698509,1.67095457,2613.9,2613.8,9.1942]
[1749071699507,1.67095457,2613.9,2613.8,3.2078]
[1749071699710,0.76491,2613.5,2613.4,0.6535]
[1749071699913,0.90616457,2613.5,2613.4,6.12844]
[1749071700214,1.67107457,2613.5,2613.4,5.3635]
[1749071700418,1.69750554,2613.5,2613.4,4.71]
[1749071700613,0.76494,2613.4,2613.3,23.133]
[1749071700817,3.64483554,2613.4,2613.3,4.686]
[1749071701608,0.765,2613.2,2613.1,4.69174064]
[1749071701813,1.69759554,2613.2,2613.1,4.69174064]
[1749071702015,1.69759554,2613.2,2613.1,0.00574064]
[1749071702210,1.69759554,2613.2,2613.1,4.69174064]
[1749071702616,8.00279554,2613.2,2613.1,0.00574064]
[1749071704720,8.01529091,2613.2,2613.1,0.00574064]
[1749071705317,0.76517,2612.6,2612.5,27.824]
[1749071705514,1.71026091,2612.6,2612.5,23.137]
[1749071705716,1.71026091,2612.6,2612.5,4.687]
[1749071706711,0.76523,2612.4,2612.3,7.90054064]
[1749071706918,1.71032091,2612.4,2612.3,7.90054064]
[1749071708118,1.71032091,2612.4,2612.3,3.21354064]
[1749071708618,1.71032091,2612.4,2612.3,0.00574064]
[1749071708824,4.91812091,2612.4,2612.3,0.00574064]
[1749071709018,4.9142153,2612.4,2612.3,0.00574064]
[1749071709220,9.9142153,2612.4,2611.9,3.2078]
[1749071709525,0.76547,2611.6,2611.5,4.687]
[1749071710115,0.9411853,2611.6,2611.1,4.6323]
[1749071710317,0.76556,2611.3,2611.2,4.688]
[1749071710819,1.70529901,2611.3,2611.2,4.688]
[1749071711220,0.76558,2611.2,2611.1,7.90154064]
[1749071712318,0.00574064,2611.4,2611.1,7.90154064]
[1749071712319,0.76557,2611.3,2611.1,7.90154064]
[1749071712522,0.00574064,2611.4,2611.3,0.76556]
[1749071714021,0.00574064,2611.4,2611.1,9.16224064]
[1749071714226,0.00574064,2611.4,2611.2,1.2607]
[1749071714421,0.00574064,2611.4,2611.3,0.76556]
[1749071714828,0.77127064,2611.4,2611.3,4.689]
[1749071715022,0.76558,2611.3,2611.1,5.23984064]
[1749071715227,0.76557,2611.3,2611.2,4.689]
[1749071715825,2.74867,2611.3,2611.2,4.689]
[1749071716529,3.38677,2611.3,2611.2,4.689]
[1749071718223,0.76558,2611.2,2611.1,3.21354064]
[1749071718425,2.04898,2611.2,2611.1,3.21354064]
[1749071718931,2.04898,2611.2,2611.1,0.00574064]
[1749071725636,2.9827023,2611.2,2611.1,0.00574064]
[1749071728434,0.76573,2610.7,2610.6,3.8493]
[1749071728940,1.70151866,2610.7,2610.6,0.6415]
[1749071730040,0.76579,2610.5,2610.4,5.30704064]
[1749071730439,1.70157866,2610.5,2610.4,5.30704064]
[1749071731030,0.93672564,2610.5,2610.4,6.07286064]
[1749071731236,0.93672564,2610.5,2610.4,7.35766064]
[1749071731843,0.76579,2610.5,2610.4,6.59184064]
[1749071732043,1.70300412,2610.5,2610.4,6.59184064]
[1749071732237,0.93721412,2610.5,2610.4,12.35766064]
[1749071732434,0.6536,2611.2,2610.9,0.76566]
[1749071732636,1.70356032,2611.1,2611.0,0.6282]
[1749071733542,0.7657,2610.8,2610.7,3.2078]
[1749071733743,2.85216032,2610.9,2610.4,1.24424064]
[1749071734040,0.93795032,2610.8,2610.4,1.24424064]
[1749071734238,0.93795032,2610.7,2610.5,2.09308]
[1749071734438,1.70370032,2610.7,2610.5,2.09308]
[1749071734638,0.93795032,2610.6,2610.5,2.09308]
[1749071735244,1.70371032,2610.6,2610.5,2.09308]
[1749071736137,0.93795032,2610.6,2610.5,2.09308]
[1749071736844,1.70371032,2610.6,2610.5,2.09308]
[1749071739342,1.70371032,2610.6,2610.5,1.3273]
[1749071739755,0.76576,2610.6,2610.5,1.3273]
[1749071739959,1.72501569,2610.6,2610.5,1.3273]
[1749071740560,1.72501569,2610.6,2610.5,2.09309]
[1749071744755,0.76579,2610.5,2610.4,0.00574064]
[1749071744954,1.72504569,2610.5,2610.4,0.00574064]
[1749071745161,1.79236045,2610.5,2610.4,0.00574064]
[1749071748652,1.78372766,2610.5,2610.4,0.00574064]
[1749071752363,0.76591,2610.1,2610.0,27.832]
[1749071752564,1.7165329,2610.1,2610.0,27.832]
[1749071753168,1.6966359,2610.1,2610.0,27.832]
[1749071753466,0.9307259,2610.1,2609.8,0.00386671]
[1749071753671,3.97377,2609.9,2609.8,6.71e-06]
[1749071753870,9.5794959,2609.9,2609.8,6.71e-06]
[1749071754164,15.9097959,2609.9,2609.8,6.71e-06]
[1749071757268,16.4844959,2609.9,2609.8,6.71e-06]
[1749071757467,16.48263482,2609.9,2609.8,6.71e-06]
[1749071757672,6.80763482,2609.9,2609.8,6.71e-06]
[1749071757864,5.47733482,2609.9,2609.8,6.71e-06]
[1749071759173,6.74873482,2609.9,2609.8,6.71e-06]
[1749071760071,5.47733482,2609.9,2609.8,6.71e-06]
[1749071762167,1.50356482,2609.9,2609.8,6.71e-06]
[1749071762365,1.50356482,2609.9,2609.8,0.76600671]
[1749071762570,1.50356482,2609.9,2609.8,5.43600671]
[1749071762778,2.26953482,2609.9,2609.8,5.43600671]
[1749071763075,2.26953482,2609.9,2609.8,4.67000671]
[1749071763265,1.50356482,2609.9,2609.8,4.67000671]
[1749071763571,1.50356482,2609.9,2609.8,5.43600671]
[1749071763770,1.34067,2609.9,2609.8,6.72120671]
[1749071765174,1.34067,2609.9,2609.8,5.95520671]
[1749071765368,1.34067,2609.9,2609.8,4.67000671]
[1749071765674,2.30210044,2609.9,2609.8,4.67000671]
[1749071766174,2.30209554,2609.9,2609.8,4.67000671]
[1749071767173,2.30209554,2609.9,2609.8,5.43599671]
[1749071767875,1.40798476,2609.9,2609.8,5.43599671]
[1749071768073,2.30235399,2609.9,2609.8,6.76759671]
[1749071768373,1.53638399,2609.9,2609.8,6.76759671]
[1749071768673,0.76589,2610.2,2609.8,11.00160671]
[1749071768982,0.76589,2610.2,2610.1,3.2078]
[1749071769482,0.89467917,2610.5,2610.1,8.2078]
[1749071769672,0.76577,2610.6,2610.5,0.76577]
[1749071769868,0.76577,2610.6,2610.5,1.3123]
[1749071770170,0.76579,2610.5,2610.4,3.2078]
[1749071770371,0.76579,2610.5,2610.2,1.2759]
[1749071770372,0.76585,2610.3,2610.2,1.2759]
[1749071770572,1.66091432,2610.3,2610.2,1.2759]
[1749071774980,1.66210479,2610.3,2610.2,1.2759]
[1749071775586,1.66210479,2610.3,2610.2,0.6573]
[1749071776781,0.76594,2610.0,2609.9,0.6254]
[1749071776974,1.66219479,2610.0,2609.9,0.6254]
[1749071777979,0.89625479,2610.0,2609.9,1.39137]
[1749071778176,0.89625479,2610.0,2609.9,2.68187]
[1749071778380,1.66218479,2610.0,2609.9,2.68187]
[1749071778582,1.66218479,2610.0,2609.9,0.6254]
[1749071779175,0.76593,2610.0,2609.9,0.6254]
[1749071779388,0.76593,2610.0,2609.9,1.9294]
[1749071779877,1.66294396,2610.0,2609.9,1.9294]
[1749071782880,0.76596,2609.9,2609.8,6.71e-06]
[1749071783186,1.66297396,2609.9,2609.8,6.71e-06]
[1749071783681,0.76596,2609.9,2609.8,6.71e-06]
[1749071783980,1.68187739,2609.9,2609.8,6.71e-06]
[1749071784176,0.91591739,2609.9,2609.8,0.76599671]
[1749071784375,0.91591739,2609.9,2609.8,6.77069671]
[1749071785086,1.68187739,2609.9,2609.8,6.00470671]
[1749071786984,1.68187739,2609.9,2609.8,4.66900671]
[1749071788284,1.68162504,2609.9,2609.8,4.66900671]
[1749071790082,1.68162504,2609.9,2609.8,6.71e-06]
[1749071790680,11.21482504,2609.9,2609.8,6.71e-06]
[1749071791286,12.52902504,2609.9,2609.8,6.71e-06]
[1749071792187,22.25302504,2609.9,2609.8,6.71e-06]
[1749071792388,22.25252147,2609.9,2609.8,6.71e-06]
[1749071792595,25.30208134,2609.9,2609.8,6.71e-06]
[1749071792980,25.30208134,2609.9,2608.6,4.663]
[1749071792981,0.76631,2608.7,2608.6,4.663]
[1749071793185,1.68147147,2608.7,2608.6,4.663]
[1749071793988,0.91516147,2608.7,2608.6,5.42934]
[1749071794490,0.91516147,2608.7,2608.6,4.663]
[1749071794693,0.00574064,2608.9,2608.6,9.663]
[1749071794991,1.2566,2609.8,2609.5,0.76606]
[1749071795187,0.91372762,2609.7,2609.6,0.76604]
[1749071795387,0.91372762,2609.7,2609.6,2.70794]
[1749071796396,0.76599,2609.8,2609.7,0.76601]
[1749071796892,1.66996569,2609.8,2609.7,0.76601]
[1749071800893,0.76599,2609.8,2609.7,0.76601]
[1749071801293,0.90521811,2609.8,2609.7,0.76601]
[1749071801494,0.0730554,2609.9,2609.7,0.76601]
[1749071801495,0.0730554,2609.9,2609.8,0.76599]
[1749071801705,0.0730554,2609.9,2609.8,10.48209]
[1749071803396,0.8390154,2609.9,2609.8,10.48209]
[1749071803596,0.0730554,2609.9,2609.8,10.48209]
[1749071804295,0.8390154,2609.9,2609.8,8.4826]
[1749071804491,1.74393335,2609.9,2609.8,9.24859]
[1749071805698,0.97797335,2609.9,2609.8,9.24859]
[1749071806804,1.74393335,2609.9,2609.8,9.24859]
[1749071807491,0.97797335,2609.9,2609.8,9.24859]
[1749071809801,1.00235198,2609.9,2609.8,9.24859]
[1749071809999,1.76831198,2609.9,2609.8,9.24859]
[1749071810299,1.00235198,2609.9,2609.8,9.24859]
[1749071814290,1.00212493,2609.9,2609.8,9.24859]
[1749071814897,1.76808493,2609.9,2609.8,9.24859]
[1749071815199,1.00212493,2609.9,2609.8,9.24859]
[1749071815996,1.00212493,2609.9,2609.8,9.24759]
[1749071816902,1.76808493,2609.9,2609.8,9.24759]
[1749071817399,1.00212493,2609.9,2609.8,9.24759]
[1749071817704,1.76808493,2609.9,2609.8,9.24759]
[1749071818398,1.00212493,2609.9,2609.8,9.24759]
[1749071818704,1.76813619,2609.9,2609.8,9.24759]
[1749071820103,1.00217619,2609.9,2609.8,9.24759]
[1749071820303,1.76813619,2609.9,2609.8,9.24759]
[1749071820501,1.76813619,2609.9,2609.8,8.63579]
[1749071821806,1.00217619,2609.9,2609.8,8.63579]
[1749071824105,1.76813619,2609.9,2609.8,8.63579]
[1749071824405,1.00217619,2609.9,2609.8,8.63579]
[1749071825508,1.76813619,2609.9,2609.8,8.63579]
[1749071825806,1.00217619,2609.9,2609.8,8.63579]
[1749071827205,1.76813619,2609.9,2609.8,8.63579]
[1749071827410,1.77165789,2609.9,2609.8,8.63579]
[1749071827706,1.00569789,2609.9,2609.8,8.63579]
[1749071831012,2.43815789,2609.9,2609.8,7.8458]
[1749071831409,3.77075789,2609.9,2609.8,7.8458]
[1749071831804,2.8381154,2609.9,2609.8,8.61179]
[1749071831998,3.77108006,2609.9,2609.8,8.61179]
[1749071833417,3.77108006,2609.9,2609.8,7.8458]
[1749071834518,3.77108006,2609.9,2609.8,8.61179]
[1749071834814,3.77108006,2609.9,2609.8,5.40399]
[1749071835015,4.92004006,2609.9,2609.5,3.2078]
[1749071835208,0.76605,2609.6,2609.5,8.61187]
[1749071835414,1.69901466,2609.6,2609.5,8.61187]
[1749071835605,0.93296466,2609.6,2609.5,8.61187]
[1749071835811,0.76605,2609.6,2609.5,8.61187]
[1749071836211,1.69901466,2609.6,2609.5,8.61187]
[1749071836417,1.70642693,2609.6,2609.5,8.61187]
[1749071836611,2.28122693,2609.6,2609.5,8.61187]
[1749071839018,2.28111074,2609.6,2609.5,8.61187]
[1749071839511,1.51506074,2609.6,2609.5,8.61187]
[1749071839714,2.28111074,2609.6,2609.5,8.61187]
[1749071840519,2.3484255,2609.6,2609.5,8.61187]
[1749071840919,2.34791791,2609.6,2609.5,8.61187]
[1749071841419,1.58186791,2609.6,2609.5,8.61187]
[1749071842211,2.34791791,2609.6,2609.5,8.61187]
[1749071842619,1.58186791,2609.6,2609.5,8.61187]
[1749071842827,2.34791791,2609.6,2609.5,8.61187]
[1749071843014,1.58186791,2609.6,2609.5,8.61187]
[1749071843716,1.58186791,2609.6,2609.5,7.8458]
[1749071843717,2.34791791,2609.6,2609.5,7.8458]
[1749071845314,2.34733447,2609.6,2609.5,7.8458]
[1749071847520,2.34733447,2609.6,2609.5,3.2078]
[1749071847721,1.91522,2609.5,2608.9,0.6674]
[1749071847926,1.91522,2609.5,2608.9,6.07163]
[1749071847927,0.76623,2609.0,2608.9,6.07163]
[1749071848423,1.70539971,2609.0,2608.9,6.07163]
[1749071849627,0.93916971,2609.0,2608.9,6.07163]
[1749071850529,1.70539971,2609.0,2608.9,6.07163]
[1749071851624,1.70539971,2609.0,2608.9,5.3054]
[1749071851820,0.76634,2608.6,2608.5,7.8448]
[1749071852024,0.76634,2608.6,2608.5,4.637]
[1749071852415,1.70161919,2608.6,2608.5,4.637]
[1749071856724,4.90941919,2608.6,2608.5,4.637]
[1749071857428,1.70161919,2608.6,2608.5,4.637]
[1749071858430,2.27511919,2608.6,2608.5,4.637]
[1749071860725,1.50877919,2608.6,2608.5,5.40337]
[1749071861132,0.5735,2608.6,2608.5,13.61117]
[1749071865432,0.5735,2608.6,2608.5,8.61117]
[1749071866635,0.06731476,2609.0,2608.5,12.8448]
[1749071866829,0.06731476,2609.0,2608.9,3.97405]
[1749071867037,0.06731476,2609.0,2608.9,31.33605]
[1749071867725,0.06731476,2609.0,2608.9,32.62875]
[1749071868432,0.7661,2609.5,2609.4,0.76611]
[1749071868733,1.69689315,2609.5,2609.4,5.40411]
[1749071869127,1.69689315,2609.5,2609.4,6.02581]
[1749071869726,0.93079315,2609.5,2609.4,6.02581]
[1749071871233,0.93079315,2609.5,2609.4,7.96971]
[1749071873238,1.69687315,2609.5,2609.4,7.96971]
[1749071873438,0.93079315,2609.5,2609.4,6.65811]
[1749071876339,0.76606,2609.6,2609.5,0.76608]
[1749071876540,1.71065338,2609.6,2609.5,0.76608]
[1749071878141,0.76608,2609.5,2609.4,6.65809]
[1749071878339,1.71067338,2609.5,2609.4,6.65809]
[1749071878934,0.94459338,2609.5,2609.4,6.65809]
[1749071880241,1.71067338,2609.5,2609.4,6.65809]
[1749071880740,1.71067338,2609.5,2609.4,5.892]
[1749071880940,1.70989266,2609.5,2609.4,5.40411]
[1749071885147,1.77720742,2609.5,2609.4,5.40411]
[1749071885343,1.77745337,2609.5,2609.4,5.40411]
[1749071885648,1.01137337,2609.5,2609.4,5.40411]
[1749071886144,1.01137337,2609.5,2609.4,8.61191]
[1749071886342,1.01137337,2609.5,2609.4,5.40411]
[1749071887647,1.01137337,2609.5,2609.4,8.61191]
[1749071887854,0.00574064,2609.9,2609.4,12.8458]
[1749071888146,0.00574064,2609.9,2609.8,0.76599]
[1749071888340,0.00574064,2609.9,2609.8,23.11699]
[1749071888543,0.00574064,2609.9,2609.8,23.74839]
[1749071888948,0.00574064,2609.9,2609.4,0.76609]
[1749071889150,5.12278,2609.8,2609.5,5.40007]
[1749071889449,0.76608,2609.6,2609.5,4.634]
[1749071890048,2.06668,2609.6,2609.5,4.634]
[1749071892842,1.3006,2609.6,2609.3,4.634]
[1749071893041,1.2537,2609.7,2609.3,4.634]
[1749071893240,0.06731476,2609.5,2609.4,0.7661]
[1749071893447,0.06731476,2609.5,2609.4,1.3906]
[1749071895852,0.83339476,2609.5,2609.4,1.3906]
[1749071896044,0.06731476,2609.5,2609.4,1.3906]
[1749071896845,0.06731476,2609.5,2609.4,3.2277]
[1749071897754,0.83339476,2609.5,2609.4,3.2277]
[1749071897951,0.06731476,2609.5,2609.4,3.2277]
[1749071898953,0.83338476,2609.5,2609.4,3.2277]
[1749071899149,0.83338476,2609.5,2609.4,2.0114]
[1749071899857,0.06731476,2609.5,2609.4,2.0114]
[1749071900155,1.0086903,2609.5,2609.4,2.0114]
[1749071900552,1.0086903,2609.5,2609.4,3.2412]
[1749071902668,1.7747703,2609.5,2609.4,3.2412]
[1749071902959,1.7749694,2609.5,2609.4,3.2412]
[1749071903660,1.0088894,2609.5,2609.4,3.2412]
[1749071904753,1.7749694,2609.5,2609.4,2.0114]
[1749071904951,0.76614,2609.4,2609.2,3.2078]
[1749071905156,0.76614,2609.4,2609.3,5.40014]
[1749071905355,1.7076736,2609.4,2609.3,5.40014]
[1749071905962,0.9415336,2609.4,2609.3,5.40014]
[1749071906155,1.7076436,2609.4,2609.3,5.40014]
[1749071906355,0.76614,2609.3,2609.2,3.8184]
[1749071906664,2.3439736,2609.3,2609.2,8.4524]
[1749071907350,2.3439736,2609.3,2609.2,9.21857]
[1749071908363,2.3439736,2609.3,2609.2,3.2078]
[1749071908564,0.76625,2608.9,2608.8,0.6115]
[1749071908767,1.7077836,2608.9,2608.8,6.01178]
[1749071909759,1.7077836,2608.9,2608.8,1.37778]
[1749071910067,1.7077836,2608.9,2608.8,6.01178]
[1749071910264,1.7077836,2608.9,2608.8,4.634]
[1749071911065,2.3424836,2608.9,2608.8,4.634]
[1749071911365,2.34105563,2608.9,2608.8,4.634]
[1749071912668,2.34105563,2608.9,2608.8,5.40028]
[1749071913564,2.34105563,2608.9,2608.8,4.634]
[1749071914468,2.34105563,2608.9,2608.4,0.76638]
[1749071914469,0.76637,2608.5,2608.4,0.76638]
[1749071914662,1.70647563,2608.5,2608.4,5.39838]
[1749071915460,1.70647563,2608.5,2608.4,4.632]
[1749071915768,0.7664,2608.4,2608.3,4.59502]
[1749071915968,1.70480091,2608.4,2608.3,7.8398]
[1749071918359,0.76649,2608.1,2608.0,1.2982]
[1749071918565,0.76649,2608.1,2608.0,5.2667]
[1749071918865,0.76649,2608.1,2608.0,6.03322]
[1749071919265,1.91619,2608.2,2607.8,31.0188]
[1749071919466,0.76652,2608.0,2607.9,0.76652]
[1749071919672,1.72205723,2608.0,2607.9,0.76652]
[1749071920574,0.76655,2607.9,2607.8,31.0188]
[1749071920771,1.72208723,2607.9,2607.8,31.0188]
[1749071921275,1.72208723,2607.9,2607.8,27.811]
[1749071922867,1.72208723,2607.9,2607.8,4.632]
[1749071924474,1.71927357,2607.9,2607.8,4.632]
[1749071924677,1.71927357,2607.9,2607.5,3.2078]
[1749071924678,0.76663,2607.6,2607.5,3.2078]
[1749071924868,0.76663,2607.7,2607.5,7.8408]
[1749071925070,0.76663,2607.6,2607.5,8.60744]
[1749071925373,0.76661,2607.7,2607.6,0.76663]
[1749071925769,2.5305,2608.1,2607.5,9.75745]
[1749071925770,0.6559,2608.1,2607.5,9.75745]
[1749071925976,0.76647,2608.2,2608.1,0.76646]
[1749071926177,1.71810506,2608.2,2608.1,0.76646]
[1749071926568,0.95163506,2608.2,2608.1,0.76646]
[1749071926780,0.95163506,2608.2,2607.9,7.86286]
[1749071926781,0.76647,2608.2,2607.9,7.1864]
[1749071926972,0.77219064,2608.3,2608.2,0.76646]
[1749071927166,0.77219064,2608.3,2607.9,7.1864]
[1749071927167,0.95708703,2608.3,2607.9,7.1864]
[1749071927369,0.77219064,2608.3,2608.2,0.76646]
[1749071927571,1.72353655,2608.3,2608.2,0.76646]
[1749071927772,0.76647,2608.2,2608.1,0.76647]
[1749071935279,0.87561064,2608.3,2608.2,0.76647]
[1749071935578,1.82009629,2608.3,2608.2,0.76647]
[1749071936584,0.7665,2608.2,2608.1,0.76647]
[1749071936890,0.94448565,2608.2,2608.1,0.76647]
[1749071937383,1.7120853,2608.2,2608.1,0.76647]
[1749071937574,0.9456153,2608.2,2608.1,0.76647]
[1749071938580,1.7120853,2608.2,2608.1,0.76647]
[1749071938982,0.9456153,2608.2,2608.1,0.76647]
[1749071940485,1.7120853,2608.2,2608.1,0.76647]
[1749071941077,0.76653,2608.0,2607.9,0.6609]
[1749071941380,0.76657,2607.9,2607.8,0.76654]
[1749071941585,1.7121853,2607.9,2607.8,0.76654]
[1749071941788,1.71384035,2607.9,2607.8,1.40844]
[1749071942485,0.76658,2607.8,2607.7,5.3996]
[1749071942684,1.71385035,2607.8,2607.7,4.633]
[1749071943087,1.71385035,2607.8,2607.7,5.39961]
[1749071943288,1.71385035,2607.8,2607.7,4.633]
[1749071943689,1.71385035,2607.8,2607.7,5.39961]
[1749071944099,1.71385035,2607.8,2607.7,4.633]
[1749071944295,1.71385035,2607.8,2607.7,5.39961]
[1749071945192,1.71385035,2607.8,2607.7,4.633]
[1749071945392,0.76661,2607.7,2607.6,0.6142]
[1749071945596,0.76664,2607.6,2607.5,3.2078]
[1749071945790,1.71391035,2607.6,2607.5,7.8378]
[1749071946099,1.71391035,2607.6,2607.5,8.60447]
[1749071946100,0.92136566,2607.6,2607.5,8.60447]
[1749071946892,1.68800566,2607.6,2607.5,8.60447]
[1749071947104,0.92136566,2607.6,2607.5,8.60447]
[1749071947502,1.68800566,2607.6,2607.5,8.60447]
[1749071947995,0.92136566,2607.6,2607.5,8.60447]
[1749071949496,1.68800566,2607.6,2607.5,8.60447]
[1749071950003,0.92136566,2607.6,2607.5,8.60447]
[1749071950299,1.68800566,2607.6,2607.5,8.60447]
[1749071951293,1.68800566,2607.6,2607.5,5.39667]
[1749071954200,0.92136566,2607.6,2607.5,5.39667]
[1749071954702,1.70876684,2607.6,2607.5,5.39667]
[1749071959509,0.94212684,2607.6,2607.5,8.60447]
[1749071959798,0.76654,2608.0,2607.9,0.76655]
[1749071959997,0.94231458,2608.0,2607.9,5.39755]
[1749071960505,0.94231458,2608.0,2607.9,6.62635]
[1749071961399,1.03741458,2608.0,2607.9,6.62635]
[1749071963603,1.03783031,2608.0,2607.9,6.62635]
[1749071964408,1.03783031,2608.0,2607.9,24.33735]
[1749071964913,1.80436031,2608.0,2607.9,24.33735]
[1749071965205,1.80436031,2608.0,2607.9,23.10855]
[1749071965405,1.03783031,2608.0,2607.9,23.10855]
[1749071966706,1.80436031,2608.0,2607.9,5.39755]
[1749071967905,0.76655,2607.9,2607.8,5.22887]
[1749071968113,1.70973502,2607.9,2607.8,7.8378]
[1749071968305,2.35903502,2607.9,2607.8,8.60438]
[1749071968614,2.35903502,2607.9,2607.8,5.39658]
[1749071970914,1.59248502,2607.9,2607.8,5.01348]
[1749071971610,2.35903502,2607.9,2607.8,5.01348]
[1749071972411,1.59312612,2607.9,2607.8,5.01348]
[1749071972613,1.41585,2607.9,2607.8,5.01348]
[1749071972812,0.6493,2607.9,2607.8,5.01348]
[1749071973114,1.41585,2607.9,2607.8,5.01348]
[1749071973417,2.35961041,2607.9,2607.8,5.01348]
[1749071974118,1.59306041,2607.9,2607.6,0.00701977]
[1749071974329,3.66702517,2607.9,2607.8,4.625]
[1749071974613,2.42692517,2607.9,2607.8,4.625]
[1749071975013,1.48316476,2607.9,2607.8,4.625]
[1749071975208,2.42680422,2607.9,2607.8,4.625]
[1749071979418,2.42680422,2607.9,2607.8,5.39158]
[1749071979619,2.42680422,2607.9,2607.8,4.625]
[1749071982323,1.01095422,2607.9,2607.8,5.39158]
[1749071983418,1.03303946,2607.9,2607.8,5.39158]
[1749071984525,1.10035422,2607.9,2607.8,5.39158]
[1749071986327,1.10035422,2607.9,2607.8,6.60268]
[1749071987922,1.12740978,2607.9,2607.8,6.60268]
[1749071988323,1.12741891,2607.9,2607.8,6.60268]
[1749071988523,0.15671476,2607.9,2607.8,6.60268]
[1749071989331,1.12745027,2607.9,2607.8,6.60268]
[1749071990124,0.15671476,2607.9,2607.8,6.60268]
[1749071992937,0.15671476,2607.9,2607.8,24.30268]
[1749071993736,1.12713157,2607.9,2607.8,24.30268]
[1749071994131,1.12703176,2607.9,2607.8,24.30268]
[1749071994533,0.15671476,2607.9,2607.8,24.30268]
[1749072000239,0.15671476,2607.9,2607.8,6.60268]
[1749072000442,0.15671476,2607.9,2607.8,24.29968]
[1749072006344,0.15671476,2607.9,2607.8,23.08858]
[1749072006739,1.14394999,2607.9,2607.8,23.08858]
[1749072009037,1.14394999,2607.9,2607.8,0.76658]
[1749072009244,1.14394999,2607.9,2607.8,23.07958]
[1749072010241,1.14502458,2607.9,2607.8,23.07958]
[1749072014847,1.1472382,2607.9,2607.8,26.28738]
[1749072020545,1.1472382,2607.9,2607.8,8.59338]
[1749072020743,1.1472382,2607.9,2607.8,26.28238]
[1749072022258,1.1472382,2607.9,2607.8,3.97438]
[1749072022547,1.1472382,2607.9,2607.8,26.28138]
[1749072023346,1.1472382,2607.9,2607.8,8.59338]
[1749072023549,1.10908285,2607.9,2607.8,26.28138]
[1749072023751,2.42398641,2607.9,2607.8,26.28138]
[1749072024458,2.42398641,2607.9,2607.8,3.97438]
[1749072024655,2.42398641,2607.9,2607.8,26.28138]
[1749072027456,2.42398641,2607.9,2607.8,26.28038]
[1749072028254,2.42581863,2607.9,2607.8,26.28038]
[1749072028961,2.42581863,2607.9,2607.8,26.27938]
[1749072032764,2.4261281,2607.9,2607.8,26.27938]
[1749072033359,9.3425381,2607.9,2606.9,0.30826804]
[1749072033555,9.3425381,2607.9,2606.8,4.619]
[1749072033556,3.2078,2607.3,2606.8,4.619]
[1749072033854,0.76682,2607.0,2606.9,0.6516]
[1749072034058,0.95441334,2607.0,2606.9,1.41845]
[1749072035354,1.40918,2607.2,2607.0,0.76681]
[1749072035553,0.9522625,2607.1,2607.0,0.76681]
[1749072036258,1.7190525,2607.1,2606.9,5.2636]
[1749072036458,0.9522625,2607.0,2606.9,6.03045]
[1749072037158,0.76679,2607.1,2607.0,0.76682]
[1749072037365,1.71787512,2607.1,2607.0,0.76682]